bitfinex/quotes_ETHUSD_20240827
["timestamp","ask_amount","ask_price","bid_price","bid_amount"]
[1724762010702,5.24742927,2629.2,2628.6,3.80422]
[1724762010875,3.80372,2629.0,2628.6,3.80422]
[1724762011468,4.20179661,2629.2,2628.6,7.60845]
[1724762011779,3.80333,2629.3,2628.8,3.80388]
[1724762012284,9.014843,2629.4,2628.8,3.80388]
[1724762012434,3.80323,2629.4,2628.9,0.07606925]
[1724762012640,4.20122125,2629.5,2628.9,0.07606925]
[1724762012971,5.00163837,2629.5,2629.0,3.8037]
[1724762013172,1.19862837,2629.5,2629.0,3.8037]
[1724762013475,0.39821125,2629.5,2629.0,3.8037]
[1724762013839,3.80317,2629.4,2628.8,3.80392]
[1724762014039,3.80317,2629.4,2628.7,6.24516]
[1724762014249,3.80345,2629.2,2628.8,4.35401]
[1724762014472,3.80329,2629.3,2628.8,4.35401]
[1724762014986,3.80317,2629.4,2628.9,3.80385]
[1724762015190,3.8033,2629.3,2628.8,4.94833588]
[1724762015392,3.80317,2629.4,2628.8,4.94833588]
[1724762015393,3.80343,2629.2,2628.8,4.94833588]
[1724762015545,3.80343,2629.2,2628.8,0.55]
[1724762015895,3.80394,2628.9,2628.4,6.23579]
[1724762016252,3.80394,2628.9,2628.4,10.0403]
[1724762016446,3.80372,2629.0,2628.5,3.80444]
[1724762016651,3.80372,2629.0,2628.6,3.80429]
[1724762017247,3.80354,2629.2,2628.6,7.60845]
[1724762018155,3.8036,2629.1,2628.6,7.60845]
[1724762018356,3.80351,2629.2,2628.7,3.80404]
[1724762018660,3.80316,2629.4,2628.8,3.80392]
[1724762018992,3.80316,2629.4,2628.8,3.87999156]
[1724762019346,3.80316,2629.4,2628.9,3.80384]
[1724762019559,3.80316,2629.4,2628.9,6.11954]
[1724762019762,7.60639,2629.4,2628.9,6.11954]
[1724762020152,3.80369,2629.1,2628.5,2.4325]
[1724762020390,3.80369,2629.1,2628.6,3.80429]
[1724762020983,1.10046013,2629.3,2628.3,2.4868]
[1724762021167,3.80423,2628.7,2628.3,2.4868]
[1724762021358,3.80441,2628.6,2628.3,2.4868]
[1724762021561,3.80423,2628.7,2628.3,2.4868]
[1724762021855,7.6085,2628.7,2628.3,2.4868]
[1724762022397,3.80423,2628.7,2628.3,2.4868]
[1724762022694,3.80423,2628.7,2627.8,2.4402]
[1724762022695,3.80459,2628.4,2627.8,2.4402]
[1724762022905,3.80446,2628.5,2628.0,3.80517]
[1724762023073,3.80518,2628.0,2627.4,2.4639]
[1724762023275,3.80537,2627.9,2627.4,6.26993]
[1724762023791,3.80513,2628.1,2627.4,2.4639]
[1724762023956,3.80513,2628.1,2627.6,3.80561]
[1724762024482,3.80478,2628.3,2627.6,3.80561]
[1724762024483,3.80489,2628.2,2627.7,3.80559]
[1724762024877,3.80504,2628.1,2627.6,7.61127]
[1724762025071,3.80478,2628.3,2627.7,3.80558]
[1724762025072,7.60964,2628.3,2627.7,3.80558]
[1724762025388,3.80462,2628.4,2627.9,3.80531]
[1724762025588,3.0,2628.3,2627.9,3.80531]
[1724762025794,3.0,2628.3,2627.9,3.80523]
[1724762026090,3.8049,2628.2,2627.7,3.80555]
[1724762026276,6.80482,2628.3,2627.8,4.3554]
[1724762027001,3.80463,2628.4,2627.9,6.0905]
[1724762027615,3.8046,2628.4,2627.9,6.0905]
[1724762028262,11.08455,2628.5,2627.9,6.0905]
[1724762028467,3.80476,2628.3,2627.9,2.2852]
[1724762029697,3.80455,2628.5,2627.9,6.09044]
[1724762029893,3.80467,2628.4,2627.9,6.09044]
[1724762030064,3.80454,2628.5,2628.0,3.88125358]
[1724762030264,3.80454,2628.5,2628.0,3.80516]
[1724762030711,3.80454,2628.5,2628.0,3.8812527]
[1724762030870,3.80454,2628.5,2628.0,5.04269454]
[1724762030871,7.60906,2628.5,2628.0,5.04269454]
[1724762031071,3.80452,2628.5,2628.0,4.96660184]
[1724762031607,3.80452,2628.5,2628.0,4.96652184]
[1724762032311,6.80425,2628.7,2628.1,3.80495]
[1724762032519,6.80425,2628.7,2628.1,4.53773154]
[1724762032818,3.80431,2628.6,2628.1,3.80495]
[1724762033177,3.80445,2628.5,2628.1,3.80495]
[1724762034380,3.80445,2628.5,2628.0,4.96660184]
[1724762034976,6.80422,2628.7,2628.2,3.80487]
[1724762035519,3.80422,2628.7,2628.2,3.88095774]
[1724762035676,0.39830053,2628.8,2628.3,2.3661878]
[1724762035884,3.80406,2628.8,2628.4,3.80447]
[1724762036817,5.3805539,2628.9,2628.5,3.88052174]
[1724762037003,1.98162085,2629.1,2628.5,3.88052174]
[1724762037004,5.3803139,2629.1,2628.6,3.80421]
[1724762037212,5.3803139,2629.1,2628.6,0.07607515]
[1724762037387,3.80363,2629.1,2628.6,0.07607515]
[1724762037593,1.5766839,2629.3,2628.7,6.23223]
[1724762037787,5.3798939,2629.4,2628.8,4.43005911]
[1724762037985,3.80321,2629.4,2628.8,4.43005911]
[1724762038722,7.60644,2629.4,2628.8,4.43005911]
[1724762038911,3.80321,2629.4,2628.8,4.35399]
[1724762039227,7.60648,2629.4,2628.8,4.35399]
[1724762039723,9.1831639,2629.4,2628.8,4.35399]
[1724762039933,9.1831539,2629.4,2628.8,5.4749343]
[1724762040311,1.5766839,2629.3,2628.4,2.2798]
[1724762040527,5.3802939,2629.1,2628.5,3.80434]
[1724762040831,1.5766839,2629.1,2628.6,0.07607417]
[1724762041018,1.5766839,2629.1,2628.7,3.80406]
[1724762041330,1.5766839,2629.1,2628.5,3.80433]
[1724762041488,1.5766839,2629.1,2628.4,3.188267]
[1724762041489,3.80379,2629.0,2628.4,6.992787]
[1724762041683,3.80379,2629.0,2628.5,0.55]
[1724762042200,3.80387,2628.9,2628.5,0.55]
[1724762042409,1.5766839,2629.0,2628.5,0.55]
[1724762042410,3.80374,2629.0,2628.5,0.55]
[1724762042713,3.80374,2629.0,2628.5,1.6847447]
[1724762043385,3.80374,2629.0,2628.6,0.07607545]
[1724762043941,3.80374,2629.0,2628.5,5.4891747]
[1724762044832,5.3804239,2629.0,2628.5,1.6847447]
[1724762045687,1.5766839,2628.9,2628.5,0.55]
[1724762045943,5.3804239,2629.0,2628.5,0.55]
[1724762046227,5.3804239,2629.0,2628.4,2.2798]
[1724762046228,5.3806239,2628.9,2628.4,2.2798]
[1724762046398,1.5766839,2628.8,2628.4,2.2798]
[1724762046598,5.3806239,2628.9,2628.4,2.2798]
[1724762046899,5.3806239,2628.9,2628.4,6.08438]
[1724762047113,1.5766839,2628.8,2628.4,2.2798]
[1724762048534,1.5766839,2628.8,2628.4,6.08435]
[1724762048842,1.5766839,2628.8,2628.4,9.88887]
[1724762049048,1.5766839,2628.9,2628.4,9.88887]
[1724762049231,1.5766839,2628.8,2628.4,9.88887]
[1724762049431,1.5766839,2628.8,2628.4,6.08432]
[1724762049648,1.5766839,2628.8,2628.4,9.88881]
[1724762049850,1.5766839,2628.8,2628.4,6.08429]
[1724762050035,1.5766839,2628.7,2628.4,6.08429]
[1724762050561,1.5766839,2628.7,2628.2,3.80479]
[1724762050562,1.5766839,2628.5,2628.1,2.3968]
[1724762050770,3.80496,2628.2,2627.8,2.3968]
[1724762050919,2.4756,2628.6,2627.8,2.3968]
[1724762050920,1.5766839,2627.9,2627.8,2.3968]
[1724762051121,1.5766839,2627.9,2627.1,3.80637]
[1724762051122,3.80562,2627.7,2627.1,3.80637]
[1724762051371,1.96796217,2627.6,2627.1,2.3968]
[1724762051525,1.58740017,2627.6,2627.1,6.20322]
[1724762051868,1.58740017,2627.6,2627.1,6.2032]
[1724762052092,3.80542,2627.9,2627.3,3.80616]
[1724762052093,1.58740017,2627.8,2627.3,3.80616]
[1724762052367,1.53740017,2627.7,2627.2,0.62032]
[1724762052545,1.53740017,2627.7,2627.2,4.42652]
[1724762052858,1.53740017,2627.7,2627.3,0.81460501]
[1724762052859,5.78702704,2627.7,2627.3,0.81460501]
[1724762053060,5.78702704,2627.7,2627.2,0.62032]
[1724762053376,3.80568,2627.7,2627.2,0.62032]
[1724762053719,1.98315469,2627.8,2627.2,0.62032]
[1724762053926,5.78861469,2627.8,2627.3,0.682349]
[1724762054342,3.80546,2627.8,2627.3,0.682349]
[1724762054525,5.78852469,2627.9,2627.3,4.488509]
[1724762054526,1.98315469,2627.9,2627.3,4.488509]
[1724762054747,1.98315469,2627.9,2627.4,4.8048109]
[1724762054919,5.78847469,2627.9,2627.4,0.9988509]
[1724762055632,9.59390469,2627.9,2627.4,0.9988509]
[1724762055956,3.80547,2627.8,2627.4,0.55]
[1724762056364,1.98315469,2627.9,2627.5,3.881999]
[1724762056547,2.3814624,2628.2,2627.6,3.66437362]
[1724762056747,3.80503,2628.1,2627.7,0.07609965]
[1724762056950,3.80503,2628.1,2627.7,0.83072798]
[1724762057172,2.3814624,2628.2,2627.8,0.07610016]
[1724762057173,0.39830771,2628.2,2627.8,0.07610016]
[1724762057320,5.78796469,2628.3,2627.8,0.07610016]
[1724762057321,3.80481,2628.3,2627.8,0.07610016]
[1724762057532,3.80481,2628.3,2627.8,1.14337426]
[1724762057926,7.60964,2628.3,2627.8,1.14337426]
[1724762058359,3.80481,2628.3,2627.8,1.14337426]
[1724762058560,7.60966,2628.3,2627.8,1.14337426]
[1724762058961,7.60964,2628.3,2627.8,1.14337426]
[1724762059156,3.80481,2628.3,2627.9,0.49489043]
[1724762059540,7.60964,2628.3,2627.9,0.49489043]
[1724762059750,3.80495,2628.2,2627.6,2.9085]
[1724762059945,3.80495,2628.2,2627.6,6.71421]
[1724762060256,5.39089984,2628.2,2627.6,6.71421]
[1724762060828,1.58594984,2628.2,2627.7,4.85756]
[1724762061131,3.80481,2628.3,2627.9,3.80531]
[1724762061132,1.58594984,2628.3,2627.9,3.80531]
[1724762061439,1.58594984,2628.3,2628.0,0.44314067]
[1724762061646,1.58594984,2628.3,2627.8,0.62609666]
[1724762062176,1.58594984,2628.4,2627.9,6.24448]
[1724762062358,1.58594984,2628.4,2628.0,4.35516]
[1724762062679,1.58594984,2628.4,2628.1,1.059964]
[1724762063141,1.58594984,2628.4,2628.1,1.13605372]
[1724762063340,1.58594984,2628.5,2628.2,6.194]
[1724762063663,1.58594984,2628.6,2628.3,0.6260845]
[1724762063965,1.58594984,2628.7,2628.4,0.68200845]
[1724762064686,1.58594984,2628.7,2628.5,0.07608191]
[1724762064965,1.58594984,2628.8,2628.6,2.3623]
[1724762065125,1.58594984,2628.9,2628.6,6.24265814]
[1724762065330,1.58594984,2628.9,2628.7,1.05658446]
[1724762067175,1.58594984,2628.9,2628.6,2.43837814]
[1724762067472,1.58594984,2628.8,2628.5,0.51887649]
[1724762067774,1.58594984,2628.8,2628.6,0.55]
[1724762067979,1.58594984,2628.9,2628.6,0.55]
[1724762068165,1.58594984,2628.9,2628.6,1.03733965]
[1724762068532,1.58594984,2628.9,2628.6,0.55]
[1724762069675,1.58594984,2628.9,2628.7,2.2961]
[1724762069883,1.98313139,2629.0,2628.7,2.2961]
[1724762069884,1.58594984,2629.0,2628.7,2.2961]
[1724762070358,1.58594984,2628.9,2628.7,2.2961]
[1724762072213,1.58594984,2628.9,2628.4,2.4906]
[1724762072349,1.58594984,2628.9,2627.3,10.92159896]
[1724762072350,5.39041984,2628.5,2628.0,2.3746]
[1724762072549,5.39070984,2628.3,2627.7,6.18011]
[1724762072749,1.58594984,2628.3,2627.8,0.380552]
[1724762072949,1.98200192,2628.4,2627.8,0.380552]
[1724762072950,1.58594984,2628.4,2627.8,0.380552]
[1724762073185,1.58594984,2628.4,2627.7,6.1802]
[1724762073186,1.58594984,2628.1,2627.7,6.1802]
[1724762073369,1.98200192,2628.2,2627.7,6.18013]
[1724762073370,1.58594984,2628.2,2627.7,6.18013]
[1724762073763,1.58594984,2628.2,2627.7,9.98566]
[1724762074092,1.58594984,2628.2,2627.7,6.18013]
[1724762074253,1.58594984,2628.2,2627.8,4.423463]
[1724762074457,1.58594984,2628.3,2627.9,3.80531]
[1724762074789,1.58594984,2628.4,2627.9,3.80531]
[1724762074990,1.58594984,2628.3,2627.8,7.55020022]
[1724762075191,1.58594984,2628.3,2627.9,3.80529]
[1724762075373,1.58594984,2628.4,2628.0,3.80511]
[1724762075574,1.58594984,2628.4,2628.1,0.55]
[1724762076095,1.58594984,2628.4,2628.1,4.3549]
[1724762076393,1.58594984,2628.6,2628.2,2.3231]
[1724762076561,1.58594984,2628.5,2628.2,2.3231]
[1724762077381,1.58594984,2628.6,2628.2,2.94940836]
[1724762077567,1.58594984,2628.5,2628.2,2.3231]
[1724762077787,1.58594984,2628.6,2628.2,2.3231]
[1724762077986,1.58594984,2628.6,2628.2,6.12795]
[1724762078188,1.58594984,2628.6,2628.3,0.07608722]
[1724762078407,1.58594984,2628.7,2628.4,3.12673722]
[1724762078692,1.58594984,2628.7,2628.5,0.32028215]
[1724762078894,1.58594984,2628.7,2628.4,0.07608137]
[1724762079053,1.58594984,2628.7,2628.2,10.9886129]
[1724762079252,1.58594984,2628.7,2628.3,0.62608133]
[1724762079448,1.58594984,2628.7,2628.4,1.16146942]
[1724762079686,3.8041,2628.8,2628.4,1.16146942]
[1724762079687,5.39004984,2628.8,2628.4,1.16146942]
[1724762080807,1.58594984,2628.6,2627.9,2.4446]
[1724762081006,5.39046984,2628.5,2627.9,6.24981]
[1724762081178,3.8046,2628.4,2628.0,1.61819172]
[1724762081495,1.58594984,2628.3,2627.9,2.4446]
[1724762081696,1.58594984,2628.4,2627.9,6.49431]
[1724762081897,1.58594984,2628.4,2628.0,3.80515]
[1724762082194,1.58594984,2628.5,2628.1,3.80502]
[1724762082619,1.58594984,2628.4,2628.0,0.07609324]
[1724762082772,5.39039984,2628.5,2628.0,0.07609324]
[1724762083170,1.58594984,2628.4,2628.0,3.88117324]
[1724762083371,1.58594984,2628.5,2628.0,5.23139329]
[1724762083986,5.39039984,2628.5,2628.0,5.23139329]
[1724762084202,1.58594984,2628.4,2628.0,5.23139329]
[1724762084388,5.39039984,2628.5,2628.0,5.23139329]
[1724762085197,1.58594984,2628.4,2628.0,5.23139329]
[1724762085576,1.58594984,2628.5,2628.1,0.79204533]
[1724762085985,1.58594984,2628.4,2628.0,0.07609324]
[1724762086308,1.58594984,2628.4,2628.0,3.80515]
[1724762086494,1.58594984,2628.4,2628.0,3.88124328]
[1724762087175,1.58594984,2628.4,2628.0,3.88119328]
[1724762087887,1.58594984,2628.4,2628.1,0.94525305]
[1724762088214,1.58594984,2628.5,2628.2,4.35481]
[1724762088366,1.58594984,2628.5,2628.3,0.07608638]
[1724762088699,3.80411,2628.8,2628.3,0.62131064]
[1724762088700,1.58594984,2628.6,2628.3,0.62131064]
[1724762089825,1.58594984,2628.6,2628.3,0.54522426]
[1724762089984,1.58594984,2628.6,2628.2,4.35481]
[1724762090409,1.58594984,2628.5,2628.2,0.55]
[1724762090717,1.58594984,2628.5,2628.1,0.94525305]
[1724762091410,2.70360716,2628.4,2627.6,2.4372]
[1724762091613,5.39097984,2628.1,2627.6,2.4372]
[1724762091822,5.39097984,2628.1,2627.6,3.742104]
[1724762092344,1.58594984,2628.1,2627.6,7.547724]
[1724762092476,1.58594984,2628.2,2627.8,3.80544]
[1724762092681,1.58594984,2628.2,2627.8,5.12293972]
[1724762093677,1.58594984,2628.2,2627.9,3.80528]
[1724762094010,1.58594984,2628.2,2628.0,0.55]
[1724762094174,1.58594984,2628.3,2628.0,0.55]
[1724762094828,1.58594984,2628.2,2628.0,0.55]
[1724762095127,1.58594984,2628.3,2628.0,0.55]
[1724762095338,1.58594984,2628.2,2628.0,1.49782197]
[1724762095645,1.58594984,2628.2,2628.0,0.55]
[1724762095931,1.58594984,2628.3,2628.0,0.55]
[1724762096738,1.58594984,2628.3,2628.1,2.4685]
[1724762097037,1.58594984,2628.4,2628.2,4.35488]
[1724762097332,1.58594984,2628.5,2628.2,5.11333352]
[1724762098213,1.58594984,2628.6,2628.3,4.87551707]
[1724762098510,1.58594984,2628.7,2628.4,0.55]
[1724762098714,1.58594984,2628.7,2628.4,1.61148669]
[1724762100540,1.58594984,2628.6,2628.4,1.61148669]
[1724762101842,1.58594984,2628.6,2628.5,6.1541332]
[1724762102041,1.58594984,2628.7,2628.5,6.7041332]
[1724762102225,1.98378953,2628.7,2628.6,1.70702099]
[1724762103702,1.58805413,2628.7,2628.6,1.70702099]
[1724762107019,1.98501794,2628.8,2628.6,0.55]
[1724762107753,1.58801616,2628.7,2628.6,0.55]
[1724762107903,1.58801616,2628.8,2628.6,1.212808]
[1724762108594,1.58801616,2628.7,2628.6,1.212808]
[1724762108755,1.58801616,2628.7,2628.5,2.2736]
[1724762108909,1.588031,2628.6,2628.5,2.2736]
[1724762109251,1.588031,2628.6,2628.5,2.8236]
[1724762110235,1.588031,2628.7,2628.5,6.62804]
[1724762110445,1.588031,2628.7,2628.6,0.662804]
[1724762110746,1.588031,2628.8,2628.6,4.54318465]
[1724762110950,1.588031,2628.8,2628.7,0.55]
[1724762111246,1.588031,2628.8,2628.7,1.34167847]
[1724762111672,1.588031,2628.8,2628.7,0.55]
[1724762111966,1.98495805,2628.8,2628.7,0.55]
[1724762112111,1.98495805,2628.8,2628.6,0.55]
[1724762112319,1.58832911,2628.7,2628.6,0.55]
[1724762113025,1.58832911,2628.7,2628.1,2.2855]
[1724762113255,1.58827698,2628.2,2627.8,2.2855]
[1724762113469,1.58827698,2628.2,2627.0,0.59561176]
[1724762113470,1.58827698,2627.9,2627.3,2.4965]
[1724762113668,5.39350894,2627.6,2627.0,6.89872176]
[1724762113969,1.58765894,2627.2,2627.1,0.68987218]
[1724762114120,1.58765894,2627.2,2627.0,0.59561176]
[1724762114121,1.58765894,2627.3,2627.0,4.40220176]
[1724762114466,1.98492586,2627.4,2627.1,0.44022018]
[1724762114467,1.58765894,2627.4,2627.1,0.44022018]
[1724762116026,1.58765894,2627.5,2627.1,0.44022018]
[1724762116236,1.58765894,2627.4,2627.1,0.44022018]
[1724762116440,1.58765894,2627.5,2627.1,0.44022018]
[1724762116636,1.58765894,2627.5,2627.1,4.24667018]
[1724762116942,1.58765894,2627.6,2627.2,5.22120219]
[1724762117157,1.58765894,2627.6,2627.2,5.22108219]
[1724762117357,1.58765894,2627.7,2627.2,5.22108219]
[1724762117564,1.58765894,2627.6,2627.2,1.41488219]
[1724762117867,1.58765894,2627.7,2627.3,1.11991396]
[1724762118241,1.58765894,2627.6,2627.2,1.41488219]
[1724762118830,5.39341894,2627.6,2627.2,0.55]
[1724762119035,1.58765894,2627.5,2627.2,0.55]
[1724762119235,1.58765894,2627.6,2627.2,0.55]
[1724762119436,1.58765894,2627.6,2627.2,1.28632118]
[1724762119734,1.58765894,2627.6,2627.2,0.55]
[1724762119735,1.58765894,2627.5,2627.2,0.55]
[1724762119941,5.39348894,2627.6,2627.1,0.55]
[1724762120175,1.58765894,2627.5,2627.1,0.55]
[1724762120331,5.39348894,2627.6,2627.1,0.55]
[1724762120534,1.58765894,2627.6,2627.1,0.55]
[1724762120758,1.58765894,2627.6,2627.1,1.04522118]
[1724762120964,5.39327894,2627.7,2627.1,4.85168118]
[1724762121137,9.19895894,2627.7,2627.1,4.85168118]
[1724762121749,5.39327894,2627.7,2627.1,4.85168118]
[1724762121977,1.58765894,2627.7,2627.4,3.80604]
[1724762122215,5.78642406,2627.9,2627.3,2.34121221]
[1724762122216,5.39305894,2627.9,2627.3,2.34121221]
[1724762122352,3.80547,2627.8,2627.3,2.34121221]
[1724762122593,3.80547,2627.8,2627.3,6.14739221]
[1724762122758,3.80547,2627.8,2627.4,0.92741494]
[1724762123905,1.58765894,2627.9,2627.4,0.92741494]
[1724762123906,5.39297894,2627.9,2627.4,0.92741494]
[1724762124209,3.80532,2627.9,2627.4,0.92741494]
[1724762124780,5.39297894,2627.9,2627.4,0.92741494]
[1724762125183,5.39297894,2627.9,2627.4,4.73344494]
[1724762125483,1.98595014,2628.0,2627.5,1.33357786]
[1724762125984,3.80532,2627.9,2627.5,1.33357786]
[1724762126397,5.79113014,2628.0,2627.5,1.33357786]
[1724762126690,1.98595014,2628.0,2627.6,0.98729828]
[1724762126858,1.98595014,2628.0,2627.6,4.79303828]
[1724762127051,5.39269894,2628.1,2627.6,1.06340527]
[1724762127253,3.80532,2627.9,2627.6,1.06340527]
[1724762127461,3.80549,2627.8,2627.5,0.55]
[1724762127660,3.80549,2627.8,2627.4,0.55]
[1724762127862,3.80574,2627.7,2627.4,1.52481172]
[1724762128058,3.80549,2627.8,2627.4,1.52481172]
[1724762129186,7.61103,2627.8,2627.4,1.52481172]
[1724762129344,3.80582,2627.6,2627.0,2.2836]
[1724762129566,3.80582,2627.6,2627.1,0.55]
[1724762129567,7.61171,2627.6,2627.1,0.55]
[1724762129747,1.58765894,2627.7,2627.1,0.55]
[1724762129748,3.80596,2627.5,2627.1,0.55]
[1724762130644,3.80563,2627.7,2627.2,3.80632]
[1724762131353,3.80563,2627.7,2627.1,5.09660073]
[1724762131662,3.80612,2627.4,2626.0,3.80793]
[1724762131993,3.80612,2627.4,2625.7,4.60019015]
[1724762131994,7.61305,2627.1,2626.6,2.3118]
[1724762132196,3.80649,2627.1,2626.7,0.23118]
[1724762132487,3.80649,2627.1,2626.5,3.80732]
[1724762132692,3.80649,2627.1,2626.4,3.80739]
[1724762132693,3.80663,2627.0,2626.4,3.80739]
[1724762132887,3.80663,2627.0,2626.4,4.800077]
[1724762133058,3.80663,2627.0,2626.0,6.11197]
[1724762133059,1.58765894,2627.0,2626.0,6.11197]
[1724762133406,3.80781,2626.2,2625.6,6.11255]
[1724762134047,3.8076,2626.4,2625.7,3.80841]
[1724762134397,3.8076,2626.4,2625.8,4.800446]
[1724762135200,3.80801,2626.1,2625.6,2.304]
[1724762135487,3.80801,2626.1,2625.5,3.80875]
[1724762135689,3.80801,2626.1,2625.6,0.380875]
[1724762135851,10.78172616,2626.6,2625.6,0.380875]
[1724762135852,3.80772,2626.3,2625.6,0.380875]
[1724762136186,3.8078,2626.2,2625.6,0.380875]
[1724762136486,3.80782,2626.2,2625.6,0.380875]
[1724762136688,3.80772,2626.3,2625.6,0.380875]
[1724762136689,3.80772,2626.3,2625.6,4.26568548]
[1724762136886,3.80772,2626.3,2625.7,0.7998255]
[1724762137974,3.80741,2626.5,2625.9,3.80819]
[1724762138160,3.80735,2626.5,2626.0,0.6261518]
[1724762138362,3.80757,2626.4,2625.7,0.7998255]
[1724762138677,3.80786,2626.2,2625.5,6.1476]
[1724762138867,3.80786,2626.2,2625.6,1.47743372]
[1724762139202,3.80793,2626.1,2625.6,1.47743372]
[1724762139377,3.80808,2626.0,2625.6,0.55]
[1724762139699,3.80786,2626.2,2625.6,0.55]
[1724762139899,3.80786,2626.2,2625.6,4.35863]
[1724762140105,3.80793,2626.1,2625.6,0.55]
[1724762141490,2.4866,2626.5,2625.2,6.25703]
[1724762141491,3.80808,2626.0,2625.2,6.25703]
[1724762141799,3.80867,2625.6,2625.0,3.80942]
[1724762142107,3.80839,2625.8,2625.0,3.80942]
[1724762142108,3.80853,2625.7,2625.0,4.816131]
[1724762142269,3.80853,2625.7,2625.0,8.625551]
[1724762142474,3.80853,2625.7,2625.1,3.80937]
[1724762142699,3.80853,2625.7,2625.0,4.816131]
[1724762142700,3.80845,2625.8,2625.2,3.80922]
[1724762143501,3.80854,2625.7,2625.0,8.625511]
[1724762143671,3.80854,2625.7,2625.1,0.55]
[1724762143877,3.80854,2625.7,2625.1,4.35936]
[1724762145008,0.39843552,2626.0,2625.4,6.18722]
[1724762145296,4.20650552,2626.0,2625.5,0.62616536]
[1724762145495,3.80838,2625.8,2625.4,2.3783]
[1724762146574,3.80852,2625.7,2625.2,0.9175451]
[1724762146789,3.80852,2625.7,2625.3,0.55]
[1724762146974,3.80852,2625.7,2625.1,7.97204472]
[1724762147500,3.80865,2625.6,2625.1,4.16269472]
[1724762147700,3.80872,2625.6,2625.1,2.8074]
[1724762148002,3.80846,2625.8,2625.1,6.61676]
[1724762148217,3.80857,2625.7,2625.1,6.61676]
[1724762148889,3.80834,2625.9,2625.2,3.88527788]
[1724762149228,0.39843552,2626.0,2625.5,3.80878]
[1724762149365,0.39843552,2626.0,2625.6,2.91634303]
[1724762149691,3.808,2626.1,2625.6,2.4593]
[1724762149889,3.808,2626.1,2625.5,3.88486509]
[1724762150090,3.80808,2626.0,2625.6,0.55]
[1724762150274,3.80835,2625.9,2625.3,2.3316]
[1724762150506,3.80809,2626.0,2625.3,6.14068]
[1724762150668,3.80839,2625.8,2625.3,6.14068]
[1724762151774,8.04164932,2626.0,2625.3,6.14055]
[1724762152177,3.80793,2626.1,2625.4,0.07617345]
[1724762152382,3.80793,2626.1,2625.5,4.35867]
[1724762152600,3.80793,2626.1,2625.5,8.1674]
[1724762152904,3.80793,2626.1,2625.5,9.91846907]
[1724762153660,3.80793,2626.1,2625.5,6.10975907]
[1724762153818,7.61593,2626.1,2625.5,6.10975907]
[1724762154368,3.80808,2626.0,2625.5,6.10975907]
[1724762154708,3.80823,2625.9,2625.3,2.3316]
[1724762154872,3.80844,2625.8,2625.3,6.14067]
[1724762155068,3.80844,2625.8,2625.3,7.135647]
[1724762159052,3.80823,2625.9,2625.3,7.21181943]
[1724762159199,3.80823,2625.9,2625.4,7.61771]
[1724762159541,0.39850186,2626.3,2625.6,3.80851]
[1724762159700,0.39850186,2626.3,2625.6,3.88467532]
[1724762159901,3.80779,2626.2,2625.6,3.88467532]
[1724762160899,3.80799,2626.1,2625.5,4.35876]
[1724762161210,3.80808,2626.0,2625.5,0.55]
[1724762161413,3.80821,2625.9,2625.5,0.55]
[1724762161627,3.80821,2625.9,2625.4,0.62616952]
[1724762161943,3.80821,2625.9,2625.4,5.43002652]
[1724762162714,3.80802,2626.1,2625.5,3.80869]
[1724762162907,3.80812,2626.0,2625.6,0.55]
[1724762163121,3.80822,2625.9,2625.6,0.55]
[1724762163322,3.80822,2625.9,2625.4,3.88509952]
[1724762163518,3.80802,2626.1,2625.5,4.35865]
[1724762163822,7.61604,2626.1,2625.6,3.80863]
[1724762164019,3.80802,2626.1,2625.6,3.80863]
[1724762164965,7.61603,2626.1,2625.6,3.80863]
[1724762165173,3.80801,2626.1,2625.6,3.80857]
[1724762165424,3.0,2626.7,2625.9,3.80815]
[1724762165425,3.80744,2626.5,2625.9,3.80815]
[1724762165665,2.3139,2626.7,2626.1,3.80788]
[1724762165666,3.80716,2626.7,2626.1,3.80788]
[1724762165881,0.3985163,2626.9,2626.0,5.0582182]
[1724762165882,0.3985163,2626.9,2626.3,5.55933722]
[1724762166044,0.3985163,2626.9,2626.4,3.80743]
[1724762166228,7.61344,2627.0,2626.4,3.80743]
[1724762166464,3.8067,2627.0,2626.3,9.36687722]
[1724762166770,6.1201,2627.3,2626.3,9.36687722]
[1724762166771,3.80691,2626.8,2626.3,2.4326]
[1724762167068,3.80681,2626.9,2626.4,0.55]
[1724762167367,3.80681,2626.9,2626.5,0.762765]
[1724762167553,3.80681,2626.9,2626.5,0.07613875]
[1724762168335,7.6137,2626.9,2626.5,0.07613875]
[1724762168623,7.6137,2626.9,2626.4,0.55]
[1724762168624,3.8072,2626.6,2626.0,9.19667722]
[1724762168784,3.80721,2626.6,2626.1,5.65838772]
[1724762169296,3.80701,2626.8,2626.1,9.46623772]
[1724762169297,3.80706,2626.7,2626.1,9.46623772]
[1724762169849,3.80706,2626.7,2626.0,5.38863722]
[1724762169850,3.80756,2626.4,2626.0,2.2619]
[1724762170105,3.80764,2626.3,2625.7,9.21647722]
[1724762170245,3.80756,2626.4,2625.7,10.43804494]
[1724762170801,3.808,2626.1,2625.5,3.80868]
[1724762171148,3.808,2626.1,2624.9,3.80959]
[1724762171149,3.80857,2625.7,2625.1,2.4667]
[1724762171388,3.80857,2625.7,2625.1,6.27604]
[1724762171734,3.80857,2625.7,2625.1,6.27599]
[1724762172189,3.80857,2625.7,2625.2,3.80922]
[1724762172406,6.10321,2625.9,2625.3,3.80906]
[1724762172561,0.3808,2626.0,2625.3,1.64229364]
[1724762172901,3.80808,2626.0,2625.3,9.26030364]
[1724762173197,7.61652,2625.9,2625.3,5.37505579]
[1724762173352,3.80822,2625.9,2625.4,3.80893]
[1724762173548,3.80836,2625.8,2625.3,3.80894]
[1724762173821,3.80836,2625.8,2625.1,6.27597]
[1724762173824,4.570248,2625.7,2625.1,6.27597]
[1724762173977,3.80859,2625.7,2625.1,6.27597]
[1724762174147,9.20428894,2625.9,2625.2,3.88530495]
[1724762174353,3.80839,2625.8,2625.3,3.88521508]
[1724762174677,3.80839,2625.8,2625.2,5.13793122]
[1724762175502,3.80839,2625.8,2625.3,0.55]